Cogmind - Beta 13 @@@ ROGUE MODE // 2024.04.06 @ 17:40:24 Player: Mantreise Result: Destroyed by G-34 Mercenary with Small Laser Performance ------------- Evolutions (1) 500 Regions Visited (2) 400 Robots Destroyed (53) 265 Value Destroyed (1183) 1183 Prototype IDs (3) 60 Alien Tech Used (0) 0 Bonus (94) 94 TOTAL SCORE: 2502 Bonus ------- High Alert Combat Kills 94 Cogmind --------- Core Integrity 0/400 Matter 199/300 Energy 100/100 System Corruption 0% Temperature Cool (6) Movement Walking (120) Location -9/Materials Parts ------- > --- POWER (1) -------- (None) > --- PROPULSION (3) --- Aluminum Leg > --- UTILITY (3) ------ Weight Redist. System Signal Interpreter > --- WEAPON (2) ------- Improved Grenade Launcher Axe > --- INVENTORY (5) ---- Enhanced Autogun Enhanced Autogun Peak State ------------ > --- POWER ------------ Ion Engine > --- PROPULSION ------- Hover Unit Hover Unit > --- UTILITY ---------- Weight Redist. System Sensor Array Hacking Suite > --- WEAPON ----------- Enhanced Autogun Enhanced Autogun > --- INVENTORY -------- Heavy Assault Rifle Enhanced Autogun Grenade Launcher Improved Grenade Launcher Axe [Rating: 18] Favorites ----------- Power Ion Engine Engine Ion Engine Propulsion Wheel Leg Aluminum Leg Wheel Wheel Hover Unit Hover Unit Utility Small Storage Unit Device Sensor Array Storage Small Storage Unit Processor Signal Interpreter Hackware Hacking Suite Weapon Assault Rifle Ballistic Gun Assault Rifle Launcher Improved Grenade Launcher Slashing Weapon Axe Special Melee Weapon Datajack Build | -11 -10 -9 ------- Run | Yrd Mat Mat Slots Evolved 2 | . . 2 Power . | . . . Propulsion 1 | . . 1 Utility 1 | . . 1 Weapon . | . . . Parts Attached 43 | 6 19 18 Power 5 | 1 2 2 Engine 5 | 1 2 2 Core . | . . . Reactor . | . . . Propulsion 8 | 2 2 4 Treads . | . . . Leg 1 | . . 1 Wheel 2 | 2 . . Hover 5 | . 2 3 Flight . | . . . Utility 7 | 1 2 4 Device 4 | . 1 3 Storage 1 | 1 . . Processor 1 | . . 1 Hackware 1 | . 1 . Protection . | . . . Artifact . | . . . Weapon 23 | 2 13 8 Energy Gun . | . . . Energy Cannon . | . . . Ballistic Gun 15 | 2 9 4 Ballistic Cannon . | . . . Launcher 6 | . 3 3 Special Weapon . | . . . Impact Weapon . | . . . Slashing Weapon 1 | . . 1 Piercing Weapon . | . . . Special Melee Weapon 1 | . 1 . Unidentified Prototypes 1 | . . 1 Parts Lost 12 | . 2 10 Power 1 | . . 1 Propulsion 7 | . 2 5 Utility 2 | . . 2 Weapon 2 | . . 2 Highest Loss Streak 5 | . 2 5 To Critical Strikes . | . . . Average Slot Usage (%) 82 | . 86 75 Engine 10 | . 12 9 Wheel 12 | . 20 . Hover 9 | . 2 18 Device 8 | . 1 19 Storage 7 | . 12 . Processor 1 | . . 3 Hackware 5 | . 7 2 Ballistic Gun 23 | . 27 18 Launcher 1 | . . 2 Naked Turns . | . . . Heaviest Build 14 | 10 14 14 Greatest Support 24 | 20 20 24 Greatest Overweight (x) 4 | . 4 3 Average Overweight (x) . | . . . Largest Inventory Capacity 8 | 8 8 5 Average Capacity 6 | 7 7 5 Most Carried 7 | 4 7 5 Average Carried 3 | 1 3 4 Final Capacity 8 | 8 5 5 Final Carried 5 | . 5 2 Class Distribution -------------------- 69% | Mutant 30% | Scavenger-Mutant Dominant Class ---------------- Mutant | -10/Materials Scavenger-Mutant | -9/Materials Resources | -11 -10 -9 ----------- Run | Yrd Mat Mat Matter Collected 1292 | 198 536 558 Remotely . | . . . Salvage Created 1377 | . 549 828 Parts 123 | . 55 68 Haulers Intercepted 2 | . 1 1 Recyclers Shooed 1 | . . 1 Parts Field Recycled . | . . . Retrieved Matter . | . . . Parts Self-Destructed . | . . . Prevented . | . . . Kills | -11 -10 -9 ------- Run | Yrd Mat Mat Combat Hostiles Destroyed 38 | . 17 21 Melee 2 | . . 2 Guns 18 | . 7 11 AOE 18 | . 10 8 Classes Destroyed 8 | . 7 1 Worker 4 | . 3 1 Builder 2 | . 2 . Hauler 2 | . 1 1 Operator 2 | . 1 1 Watcher 5 | . 3 2 Swarmer 16 | . 9 7 Grunt 17 | . 8 9 Sentry 5 | . . 5 Best Kill Streak 7 | . 7 7 Combat Bots Only 6 | . 5 6 Max Kills in Single Turn 5 | . 3 5 Gunslinging . | . . . Exploded 4 | . 3 4 Melee 1 | . . 1 Uniques/NPCs Destroyed . | . . . Combat | -11 -10 -9 -------- Run | Yrd Mat Mat Hostile Shots Fired 229 | . 61 168 Missed 71 | . 18 53 Damage Taken 1734 | . 434 1300 Core 590 | . 185 405 Absorbed by Shields . | . . . Regen/Repaired (Parts) 79 | . 42 37 Core Remaining (%) 63 | 100 26 . Volleys Fired 116 | . 55 61 Largest 2 | . 2 2 Hottest 50 | . 46 50 Shots Fired 207 | . 95 112 Gun 194 | . 87 107 Cannon . | . . . Launcher 13 | . 8 5 Special . | . . . Kinetic 194 | . 87 107 Thermal . | . . . Explosive 13 | . 8 5 Electromagnetic . | . . . Robot Hit Streak 11 | . 7 11 Robot Miss Streak 5 | . 5 5 Penetration Max . | . . . Secondary Targets 1 | . . 1 Max Gunslinging Chain 1 | . . 1 Shots Hit Robots 108 | . 48 60 Core Hits 74 | . 29 45 Critical Kills . | . . . Critical Parts Destroyed 1 | . 1 . Critical Strikes 3 | . 1 2 Destroy 1 | . 1 . Sever 2 | . . 2 Melee Attacks 9 | . 1 8 Impact . | . . . Slashing 8 | . . 8 Piercing . | . . . Sneak Attacks . | . . . Combat Hostiles . | . . . Follow-up Attacks . | . . . Damage Inflicted 2698 | . 1194 1504 Guns 1519 | . 610 909 Cannons . | . . . Explosions 978 | . 583 395 Melee 200 | . . 200 Ramming 1 | . 1 . Kinetic 1519 | . 610 909 Thermal . | . . . Explosive 807 | . 583 224 Electromagnetic 171 | . . 171 Impact . | . . . Slashing 200 | . . 200 Piercing . | . . . Highest Corruption . | . . . Average Corruption . | . . . Corruption Purged . | . . . Corruption Blocked . | . . . Overload Shots . | . . . Overflow Damage 54 | . 54 . Projectiles . | . . . Explosions 54 | . 54 . Melee . | . . . Knockbacks . | . . . Impact . | . . . Kinetic . | . . . Secondary . | . . . Self-Inflicted Damage 63 | . . 63 Shots 3 | . . 3 Rammed 1 | . 1 . Targets Rammed 1 | . 1 . Kicked . | . . . Crushed . | . . . Highest Temperature 165 | . 6 165 Average Temperature 45 | . 2 46 Received Heat Transfer 561 | . 162 399 Siege Activations . | . . . Robots Corrupted . | . . . Combat Hostiles . | . . . Parts Fried 1 | . 1 . Impact Corruptions . | . . . Robots Melted . | . . . Combat Hostiles . | . . . Parts Melted . | . . . Heat Transferred . | . . . Parts Sabotaged . | . . . Parts Stolen . | . . . Parts Stripped . | . . . Power Chain Reactions 1 | . . 1 Alert | -11 -10 -9 ------- Run | Yrd Mat Mat Peak Influence 676 | . 420 676 Initial 126 | . . 126 Average 275 | . 210 381 Maximum Alert Level 2 | . 2 2 Low Security (%) 33 | 100 50 7 Level 1 45 | . 46 47 Level 2 20 | . 3 44 Level 3 . | . . . Level 4 . | . . . Level 5 . | . . . High Security . | . . . Max Security . | . . . Squads Dispatched 9 | . 3 6 Investigation 8 | . 2 6 Extermination . | . . . Reinforcement 1 | . 1 . Assault . | . . . Garrison . | . . . Intercept . | . . . Searches Triggered . | . . . Construction Impeded . | . . . Haulers Reinforced . | . . . Active Scanning Responses . | . . . Cargo Convoy Interrupts . | . . . Stealth | -11 -10 -9 --------- Run | Yrd Mat Mat Distress Signals 5 | . 2 3 Communications Jammed . | . . . Distress Signals . | . . . Times Spotted 53 | . 25 28 Peak Tracking Total 8 | . 5 8 Tactical Retreats 3 | . 2 1 Traps | -11 -10 -9 ------- Run | Yrd Mat Mat Traps Triggered 3 | . 1 2 Indirectly 1 | . . 1 Trap Hack Attempts . | . . . Triggered . | . . . Disarmed . | . . . Reprogrammed 1 | . 1 . Reused 1 | . 1 . Traps Extracted . | . . . Installed . | . . . Triggered 1 | . 1 . Machines | -11 -10 -9 ---------- Run | Yrd Mat Mat Machines Disabled 9 | . 1 8 Max in Single Turn 3 | . 1 3 Machines Repaired . | . . . Machines Dismantled . | . . . Machines Sabotaged . | . . . Overloaded Fab Kills . | . . . Hacking | -11 -10 -9 --------- Run | Yrd Mat Mat Machines Accessed 13 | . 5 8 Terminals 9 | . 3 6 Fabricators . | . . . Repair Stations 2 | . 1 1 Recycling Units 2 | . 1 1 Scanalyzers . | . . . Garrison Access . | . . . Total Hacks 42 | . 21 21 Successful 32 | . 17 15 Failed 10 | . 4 6 Catastrophic 2 | . . 2 Database Lockouts . | . . . Manual 15 | . 3 12 Terminals 27 | . 12 15 Fabricators . | . . . Repair Stations 11 | . 7 4 Recycling Units 4 | . 2 2 Scanalyzers . | . . . Garrison Access . | . . . Terminal Hacks 9 | . 6 3 Prototype ID Bank 1 | . 1 . Branch Access Points 1 | . . 1 Emergency Access Points 3 | . 2 1 Alert Level 1 | . . 1 Locate Traps 1 | . 1 . Reprogram Traps 1 | . 1 . Hauler Manifests 1 | . 1 . Fabricator Hacks . | . . . Repair Station Hacks 11 | . 7 4 Scan Component 6 | . 4 2 Repair 5 | . 3 2 Recycling Unit Hacks 2 | . 1 1 Report Inventory 2 | . 1 1 Scanalyzer . | . . . Garrison Access Hacks . | . . . Unauthorized Hacks 10 | . 3 7 Terminals 8 | . 2 6 Botnet 8 | . 2 6 Fabricators . | . . . Repair Stations . | . . . Recycling Units 2 | . 1 1 Reject 2 | . 1 1 Scanalyzers . | . . . Garrison Access . | . . . Data Cores Recovered 1 | . . 1 Used 1 | . . 1 Hacking Detections 10 | . 4 6 Full Trace Events 5 | . 1 4 Feedback Events . | . . . Feedback Blocked . | . . . Robot Schematics Acquired . | . . . Robots Built . | . . . Authchips . | . . . Time . | . . . Total Robot Build Rating . | . . . Part Schematics Acquired . | . . . Parts Built . | . . . Authchips . | . . . Time . | . . . Total Part Build Rating . | . . . Parts Repaired 5 | . 3 2 Time 136 | . 78 58 Parts Recycled . | . . . Recycled Matter . | . . . Retrieved Matter . | . . . Retrieved Components . | . . . Parts Scanalyzed . | . . . Part Schematics Acquired . | . . . Parts Damaged . | . . . Bothacking | -11 -10 -9 ------------ Run | Yrd Mat Mat Used RIF Installer . | . . . Robots Hacked 1 | . 1 . Non-combat . | . . . Combat 1 | . 1 . Robot Hacks Applied 1 | . 1 . parse_system 1 | . 1 . Relay Couplers Released . | . . . Fabnet Peak Effective % . | . . . Robots Rewired . | . . . Allies Hacked . | . . . Hacks Repelled . | . . . Allies | -11 -10 -9 -------- Run | Yrd Mat Mat Total Allies . | . . . Largest Group . | . . . Highest-Rated Group . | . . . Highest-Rated Ally . | . . . Total Orders . | . . . Ally Attacks . | . . . Total Damage . | . . . Kills . | . . . Allies Corrupted . | . . . Allies Melted . | . . . Intel | -11 -10 -9 ------- Run | Yrd Mat Mat Robot Analysis Total . | . . . Derelict Logs Recovered . | . . . Drone Launches . | . . . Drone Recoveries . | . . . Exploration | -11 -10 -9 ------------- Run | Yrd Mat Mat Turns Passed 1478 | 41 828 609 Spaces Moved 1164 | 39 655 470 Core 80 | 10 37 33 Treads . | . . . Legs 1 | . . 1 Wheels 582 | 29 553 . Hover 501 | . 65 436 Flight . | . . . Fastest Speed 50 | 50 56 50 Average Speed 77 | 72 87 65 Slowest Speed 250 | 80 250 200 Overloaded Moves . | . . . Propulsion Burnouts . | . . . Robots Hopped . | . . . Cave-ins Triggered . | . . . Exploration Rate (%) 37 | 2 68 43 Regions Visited 2 Branch Regions . Pre-discovered Areas . | . . . Known Exits Taken . | . . . Unknown Exits Taken 2 | 1 1 . Scrap Searched . | . . . Spaces Dug . | . . . Terrain Destroyed 62 | . 46 16 Melee . | . . . Projectile . | . . . AOE 62 | . 46 16 Terrain Rammed . | . . . Walls Destroyed . | . . . Machines Disabled . | . . . Actions | -11 -10 -9 --------- Run | Yrd Mat Mat Total 1554 | 52 814 688 Wait 167 | . 59 108 Move 1162 | 38 654 470 Hop . | . . . Pick Up 39 | 7 18 14 Fast Attach 2 | . . 2 Attach 20 | 6 5 9 Detach . | . . . Swap 21 | . 14 7 Drop 17 | 1 7 9 Fire 116 | . 55 61 Melee 9 | . 1 8 Ram 1 | . 1 . Kick . | . . . Crush . | . . . Escape Stasis . | . . . Rewire . | . . . Trap . | . . . Miscellaneous . | . . . Route ------- -11/Scrapyard -10/Materials (discovered 2 exits: *Mat x2) -9/Materials (discovered 2 exits: *Mat / Min) History --------- Turn | Location | Event 27 | -11/Scrapyard | Discovered new exit (range 15) 42 | -11/Scrapyard | Entered Materials 195 | -10/Materials | Discovered new exit (range 14) 301 | -10/Materials | Build established: Mutant 558 | -10/Materials | Discovered new exit (range 16) 599 | -10/Materials | Repaired Ion Engine 628 | -10/Materials | Repaired Assault Rifle 652 | -10/Materials | Core integrity fell below 50% 658 | -10/Materials | Repaired Grenade Launcher 870 | -10/Materials | Entered another Materials area 870 | -9/Materials | Evolved 2 slots: Propulsion x1, Utility x1 931 | -9/Materials | Identified exit to Mines 1106 | -9/Materials | Build established: Scavenger-Mutant 1220 | -9/Materials | Repaired Sensor Array 1254 | -9/Materials | Repaired Weight Redist. System 1285 | -9/Materials | Discovered new exit (range 10) 1289 | -9/Materials | Identified exit to Materials 1369 | -9/Materials | Core integrity fell below 50% 1421 | -9/Materials | Lost 5 parts (1p2n2w) 1431 | -9/Materials | Core integrity fell below 20% 1479 | -9/Materials | Destroyed by G-34 Mercenary with Small Laser Last Messages --------------- K-01 Serf collects debris. R-06 Scavenger inserts Hvy. Assault Rifle into recycling unit. Hvy. Assault Rifle discarded by recycling unit. R-06 Scavenger inserts Heat Sink into recycling unit. Heat Sink discarded by recycling unit. G-34 Mercenary destroyed. Sensor Array destroyed. Acquired 50 matter. R-06 Scavenger inserts Corrupted Flight Unit into recycling unit. Corrupted Flight Unit discarded by recycling unit. Acquired Aluminum Leg. R-06 Scavenger inserts Lgt. Ion Engine into recycling unit. Lgt. Ion Engine discarded by recycling unit. R-06 Scavenger inserts Lgt. Ion Engine into recycling unit. Lgt. Ion Engine discarded by recycling unit. R-06 Scavenger inserts Flight Unit into recycling unit. Flight Unit discarded by recycling unit. G-34 Mercenary Ion Engine severed. R-06 Scavenger inserts Lgt. Assault Rifle into recycling unit. Lgt. Assault Rifle discarded by recycling unit. Map ----- +----------------------------------------------------+ | # #????????????????# """ | | #????????????????# """ "" | | # ###########??????# """ T | | # ## ##?????# "" | | ##!! #?????# | | # ?#!! ##?????######### | | # ???#!! #??????????????? | | % # ?????# #??????????????? | | ###+##?????# #????########### | | ####### #????# * # | | + #????# =% " | | / ##### # #????# =[# | | "####/##### #####+######### # | | # # ## k # = !+ | | # # # *[=!= # % # | | # # [**[= # ! # | | # # # """ [r= + # | | # # # """ ="Y" ########### | | " # # + """ !""" ####??????? | | ######## # ???? | | #??????# + ???? | | = * #??????# ##g ########## ##????? | | ! ! [ #??????####### #########???#?????? | | *= [ #????????????# # #?????????? | | ####### < ############## + #?????????? | | ??????# = @*g # #?????????? | | ??????############# %!! #########?????????? | | ???????????????######+#######+#######????????????? | | ???????????????# = ! # #????????????? | | ???????????????# """# """ """ #????????????? | | ???????????????# R"# """"""""" #????????????? | | ???????????????# """# """"" " #????????????? | | ???????????????# # #????????????? | | ???????????????#####################?????????????? | | | | | | | | | | | | | | | | | | | | | | | | | | | | | | | | | +----------------------------------------------------+ Best States ------------- Heat Dissipation 28 Energy Generation 12 Energy Capacity 265 Matter Stores 300 Matter Capacity 300 Sight Range 16 Robot Scan Range 14 Terrain Scan Density 10 Additional Mass Support 6 Evasion (%) 54 Offensive Hacking 10 Item Schematics ----------------- None Robot Schematics ------------------ None Fabricated ------------ Nothing Alien Tech Used ----------------- None Achievements -------------- None Challenges ------------ None Game ------ Seed ArmoredCoordinationModule Manual? 0 Play Time 00:24:52 Cumulative 14.1 hours Start 2024.04.06 @ 09:39:57 End 2024.04.06 @ 17:40:24 Sessions 3 Manual Loads 0 Difficulty Rogue Special Mode None Game No. 19 Rogue 17 Adventurer 2 Explorer 0 Win Type - Total 0 Types 0/0/0/0/0/0/0/0/0 Lore% 17 Gallery% 20 Achievement% 21 Wizard Run 0 Options --------- Layout 0 ASCII 0 Keyboard 0 Movement Mouse Keybinds 0 Fullscreen 1 Font 18/Smallcaps Map View 38x25 Zoom Use 97% Tactical HUD 0 Map Filters NONE Filters NONE Steam 1 RUN: da0f1a04-52b8-4aaf-b973-9e617d7bb498